fUST/lending_fUST_20250506
["ID","MTS","AMOUNT","RATE_DAILY","PERIOD"]
[359991269,1746466269427,-400.0,0.00034246,8]
[359991270,1746466269436,-400.0,0.00034246,8]
[359991271,1746466269445,-508.21,0.00034246,8]
[359991272,1746466269455,-400.0,0.00034246,8]
[359991273,1746466269463,-502.77,0.00034246,8]
[359991274,1746466269473,-2573.19,0.00034246,8]
[359991275,1746466269482,-400.0,0.00034246,8]
[359991276,1746466269491,-412.76,0.00034246,8]
[359991277,1746466269500,-400.0,0.00034246,8]
[359991278,1746466269510,-1858.43,0.00034246,8]
[359991279,1746466269519,-663.7,0.00034246,8]
[359991280,1746466269528,-752.3,0.00034246,8]
[359991281,1746466269537,-400.0,0.00034246,8]
[359991282,1746466269546,-3742.18,0.00034246,8]
[359991283,1746466269555,-400.0,0.00034246,8]
[359991284,1746466269569,-742.46,0.00034246,8]
[359991285,1746466269578,-791.14,0.00034246,8]
[359991286,1746466269587,-500.0,0.00034246,8]
[359991287,1746466269596,-400.0,0.00034246,8]
[359991288,1746466269606,-400.0,0.00034246,8]
[359991289,1746466269616,-221.33037167,0.00034246,8]
[359991290,1746466269627,-400.0,0.00034246,8]
[359991291,1746466269638,-400.0,0.00034246,8]
[359991292,1746466269649,-424.25,0.00034246,8]
[359991293,1746466269659,-400.0,0.00034246,8]
[359991294,1746466269669,-400.0,0.00034246,8]
[359991295,1746466269678,-400.0,0.00034246,8]
[359991296,1746466269687,-400.0,0.00034246,8]
[359991297,1746466269697,-971.48,0.00034246,8]
[359991298,1746466269710,-400.0,0.00034246,8]
[359991299,1746466269720,-410.74,0.00034246,8]
[359991300,1746466269730,-400.0,0.00034246,8]
[359991301,1746466269740,-502.97,0.00034246,8]
[359991302,1746466269750,-1385.97,0.00034246,8]
[359991303,1746466269759,-828.56,0.00034246,8]
[359991304,1746466269769,-1013.68,0.00034246,8]
[359991305,1746466269778,-904.75,0.00034246,8]
[359991306,1746466269788,-400.0,0.00034246,8]
[359991307,1746466269797,-1542.95,0.00034246,8]
[359991308,1746466269807,-544.83,0.00034246,8]
[359991309,1746466269816,-906.63,0.00034246,8]
[359991310,1746466269826,-400.0,0.00034246,8]
[359991311,1746466269836,-899.92,0.00034246,8]
[359991312,1746466269846,-400.0,0.00034246,8]
[359991313,1746466269855,-419.48410704,0.00034246,8]
[359991314,1746466269866,-400.0,0.00034246,8]
[359991315,1746466269876,-400.0,0.00034246,8]
[359991316,1746466269886,-400.0,0.00034246,8]
[359991317,1746466269896,-1685.97,0.00034246,8]
[359991318,1746466269905,-400.0,0.00034246,8]
[359991319,1746466269914,-400.0,0.00034246,8]
[359991320,1746466269924,-400.0,0.00034246,8]
[359991321,1746466269934,-411.02,0.00034246,8]
[359991322,1746466269943,-400.0,0.00034246,8]
[359991323,1746466269953,-2098.43,0.00034246,8]
[359991324,1746466269962,-544.02,0.00034246,8]
[359991325,1746466269972,-942.66,0.00034246,8]
[359991326,1746466269981,-400.0,0.00034246,8]
[359991327,1746466269990,-400.0,0.00034246,8]
[359991328,1746466270000,-320.05652981,0.00034246,8]
[359991329,1746466270010,-1085.21,0.00034246,8]
[359991330,1746466270021,-442.22631754,0.00034246,8]
[359991331,1746466270032,-400.0,0.00034246,8]
[359991332,1746466270041,-541.63072618,0.00034246,8]
[359991333,1746466270050,-400.0,0.00034246,8]
[359991334,1746466270060,-400.0,0.00034246,8]
[359991335,1746466270070,-400.0,0.00034246,8]
[359991336,1746466270079,-413.54,0.00034246,8]
[359991337,1746466270088,-400.0,0.00034246,8]
[359991338,1746466270098,-400.0,0.00034246,8]
[359991339,1746466270109,-441.99,0.00034246,8]
[359991340,1746466270119,-400.0,0.00034246,8]
[359991341,1746466270130,-400.0,0.00034246,8]
[359991342,1746466270139,-3512.58,0.00034246,2]
[359991343,1746466270149,-316.90835158,0.00034246,8]
[359991344,1746466270159,-545.82,0.00034246,8]
[359991345,1746466270169,-300.99283115,0.00034246,8]
[359991346,1746466270179,-400.0,0.00034246,8]
[359991347,1746466270189,-400.0,0.00034246,8]
[359991348,1746466270198,-748.45,0.00034246,8]
[359991349,1746466270208,-1080.9,0.00034246,8]
[359991350,1746466270218,-617.8,0.00034246,8]
[359991351,1746466270227,-400.0,0.00034246,8]
[359991352,1746466270237,-521.08,0.00034246,8]
[359991353,1746466270246,-400.0,0.00034246,8]
[359991354,1746466270255,-400.0,0.00034246,8]
[359991355,1746466270265,-415.85872015,0.00034246,8]
[359991356,1746466270278,-580.82,0.00034246,8]
[359991357,1746466270288,-1700.23,0.00034246,8]
[359991358,1746466270297,-400.0,0.00034246,8]
[359991359,1746466270306,-400.0,0.00034246,8]
[359991360,1746466270316,-421.77,0.00034246,8]
[359991361,1746466270325,-400.0,0.00034246,8]
[359991362,1746466270335,-1322.26,0.00034246,8]
[359991363,1746466270345,-400.0,0.00034246,8]
[359991364,1746466270356,-400.0,0.00034246,8]
[359991365,1746466270366,-2273.92,0.00034246,8]
[359991366,1746466270375,-400.0,0.00034246,8]
[359991367,1746466270385,-942.85,0.00034246,8]
[359991368,1746466270395,-1099.01,0.00034246,8]
[359991369,1746466270407,-2641.87,0.00034246,8]
[359991370,1746466270416,-400.0,0.00034246,8]
[359991371,1746466270426,-504.9,0.00034246,8]
[359991372,1746466270436,-2078.31,0.00034246,8]
[359991373,1746466270447,-1796.69,0.00034246,8]
[359991374,1746466270458,-404.27,0.00034246,8]
[359991375,1746466270469,-400.0,0.00034246,8]
[359991376,1746466270479,-400.0,0.00034246,8]
[359991377,1746466270488,-997.13,0.00034246,8]
[359991378,1746466270498,-2875.2,0.00034246,8]
[359991379,1746466270507,-933.37,0.00034246,8]
[359991380,1746466270516,-400.0,0.00034246,8]
[359991381,1746466270528,-400.0,0.00034246,8]
[359991382,1746466270537,-400.0,0.00034246,8]
[359991383,1746466270547,-400.0,0.00034246,8]
[359991384,1746466270556,-400.0,0.00034246,8]
[359991385,1746466270566,-2166.02,0.00034246,8]
[359991386,1746466270575,-495.11,0.00034246,8]
[359991387,1746466270585,-478.21,0.00034246,8]
[359991388,1746466270594,-828.45,0.00034246,8]
[359991389,1746466270603,-400.0,0.00034246,8]
[359991390,1746466270613,-2370.89,0.00034246,8]
[359991391,1746466270622,-833.54,0.00034246,8]
[359991392,1746466270631,-400.0,0.00034246,8]
[359991393,1746466270641,-11132.27,0.00034246,8]
[359991394,1746466270651,-414.2,0.00034246,8]
[359991395,1746466270660,-1942.95,0.00034246,8]
[359991396,1746466270669,-400.0,0.00034246,8]
[359991397,1746466270679,-617.39,0.00034246,8]
[359991398,1746466270688,-400.0,0.00034246,8]
[359991399,1746466270698,-534.63,0.00034246,8]
[359991400,1746466270707,-400.0,0.00034246,8]
[359991401,1746466270716,-400.0,0.00034246,8]
[359991402,1746466270726,-400.0,0.00034246,8]
[359991403,1746466270736,-400.0,0.00034246,8]
[359991404,1746466270745,-832.63,0.00034246,8]
[359991405,1746466270755,-400.0,0.00034246,8]
[359991406,1746466270764,-937.4,0.00034246,8]
[359991407,1746466270774,-400.0,0.00034246,8]
[359991408,1746466270784,-400.0,0.00034246,8]
[359991409,1746466270793,-9074.6,0.00034246,8]
[359991410,1746466270803,-1547.41,0.00034246,8]
[359991411,1746466270812,-1484.01,0.00034246,8]
[359991412,1746466270822,-400.0,0.00034246,8]
[359991413,1746466270831,-400.0,0.00034246,8]
[359991414,1746466270841,-2080.35,0.00034246,8]
[359991415,1746466270850,-2232.97,0.00034246,8]
[359991416,1746466270860,-1691.97,0.00034246,8]
[359991417,1746466270870,-400.0,0.00034246,8]
[359991418,1746466270879,-400.0,0.00034246,8]
[359991419,1746466270888,-400.0,0.00034246,8]
[359991420,1746466270898,-400.0,0.00034246,8]
[359991421,1746466270908,-3521.81,0.00034246,8]
[359991422,1746466270918,-708.96,0.00034246,8]
[359991423,1746466270927,-551.13,0.00034246,8]
[359991424,1746466270937,-400.0,0.00034246,8]
[359991425,1746466270947,-553.1,0.00034246,8]
[359991426,1746466270957,-586.27,0.00034246,8]
[359991427,1746466270967,-400.0,0.00034246,8]
[359991428,1746466270977,-400.0,0.00034246,8]
[359991429,1746466270988,-1186.53,0.00034246,8]
[359991430,1746466270998,-535.86,0.00034246,8]
[359991431,1746466271008,-400.0,0.00034246,8]
[359991432,1746466271019,-1986.73,0.00034246,8]
[359991433,1746466271029,-462.97,0.00034246,8]
[359991434,1746466271039,-406.42,0.00034246,8]
[359991435,1746466271049,-400.0,0.00034246,8]
[359991436,1746466271059,-400.0,0.00034246,8]
[359991437,1746466271069,-1488.07,0.00034246,8]
[359991438,1746466271079,-607.06,0.00034246,8]
[359991439,1746466271089,-4132.62,0.00034246,8]
[359991440,1746466271099,-1507.7,0.00034246,8]
[359991441,1746466271109,-1135.42,0.00034246,8]
[359991442,1746466271119,-681.33,0.00034246,8]
[359991443,1746466271130,-400.0,0.00034246,8]
[359991444,1746466271140,-1080.08,0.00034246,8]
[359991445,1746466271150,-400.0,0.00034246,8]
[359991446,1746466271160,-735.3,0.00034246,8]
[359991447,1746466271170,-400.0,0.00034246,8]
[359991448,1746466271180,-681.17,0.00034246,8]
[359991449,1746466271190,-400.0,0.00034246,8]
[359991450,1746466271200,-4785.9,0.00034246,8]
[359991451,1746466271210,-400.0,0.00034246,8]
[359991452,1746466271220,-400.0,0.00034246,8]
[359991453,1746466271230,-400.0,0.00034246,8]
[359991454,1746466271239,-578.15,0.00034246,8]
[359991455,1746466271249,-400.0,0.00034246,8]
[359991456,1746466271259,-25922.47,0.00034246,8]
[359991457,1746466271270,-400.0,0.00034246,8]
[359991458,1746466271281,-3661.81,0.00034246,8]
[359991459,1746466271291,-400.0,0.00034246,8]
[359991460,1746466271301,-400.0,0.00034246,8]
[359991461,1746466271311,-228.52109403,0.00034246,8]
[359991462,1746466271321,-2781.29,0.00034246,8]
[359991463,1746466271331,-1064.62,0.00034246,8]
[359991464,1746466271340,-400.0,0.00034246,8]
[359991465,1746466271351,-400.0,0.00034246,8]
[359991466,1746466271361,-400.0,0.00034246,8]
[359991467,1746466271371,-611.37,0.00034246,8]
[359991468,1746466271381,-400.0,0.00034246,8]
[359991469,1746466271391,-400.0,0.00034246,8]
[359991470,1746466271401,-3135.4,0.00034246,8]
[359991471,1746466271410,-1911.03,0.00034246,8]
[359991472,1746466271420,-3885.96,0.00034246,8]
[359991473,1746466271540,-7691.86,0.00034246,8]
[359991474,1746466271550,-400.0,0.00034246,8]
[359991475,1746466271560,-4527.66,0.00034246,8]
[359991476,1746466271570,-400.0,0.00034246,8]
[359991477,1746466271580,-7054.49,0.00034246,8]
[359991478,1746466271589,-516.96,0.00034246,8]
[359991479,1746466271599,-604.47,0.00034246,8]
[359991480,1746466271609,-553.59,0.00034246,8]
[359991481,1746466271618,-400.0,0.00034246,8]
[359991482,1746466271628,-1553.26,0.00034246,8]
[359991483,1746466271637,-400.0,0.00034246,8]
[359991484,1746466271647,-1471.97,0.00034246,8]
[359991485,1746466271657,-400.0,0.00034246,8]
[359991486,1746466271666,-784.14,0.00034246,8]
[359991487,1746466271676,-2405.99,0.00034246,8]
[359991488,1746466271685,-566.19,0.00034246,8]
[359991489,1746466271694,-1800.71,0.00034246,8]
[359991490,1746466271704,-659.71,0.00034246,8]
[359991491,1746466271714,-400.0,0.00034246,8]
[359991492,1746466271724,-3076.91,0.00034246,8]
[359991493,1746466271734,-755.88,0.00034246,8]
[359991494,1746466271744,-400.0,0.00034246,8]
[359991495,1746466271753,-712.21,0.00034246,8]
[359991496,1746466271762,-400.0,0.00034246,2]
[359991497,1746466271772,-1249.89,0.00034246,8]
[359991498,1746466271782,-411.12,0.00034246,8]
[359991499,1746466271791,-2513.46,0.00034246,8]
[359991500,1746466271800,-400.0,0.00034246,8]
[359991501,1746466271810,-460.47320145,0.00034246,8]
[359991502,1746466271819,-1291.97,0.00034246,8]
[359991503,1746466271829,-400.0,0.00034246,8]
[359991504,1746466271838,-400.0,0.00034246,8]
[359991505,1746466271847,-2251.34019744,0.0003425,2]
[359991506,1746466271857,-152.0,0.00034268,5]
[359991507,1746466271866,-500.0,0.00034273,5]
[359991508,1746466271876,-158.828132,0.0003429,2]
[359991509,1746466271886,-160.0,0.00034354,3]
[359991510,1746466271895,-373.0,0.00034396,3]
[359991511,1746466271905,-3501.41,0.000345,7]
[359991512,1746466271915,-1692.68,0.0003452,8]
[359991513,1746466271924,-408.19,0.0003452,8]
[359991514,1746466271933,-621.86,0.0003452,8]
[359991515,1746466271944,-400.0,0.0003452,8]
[359991516,1746466271954,-400.0,0.0003452,8]
[359991517,1746466271963,-497.81,0.0003452,8]
[359991518,1746466271973,-400.0,0.0003452,8]
[359991519,1746466271983,-480.51,0.0003452,8]
[359991520,1746466271992,-441.76,0.0003452,8]
[359991521,1746466272002,-400.0,0.0003452,8]
[359991522,1746466272012,-663.75,0.0003452,8]
[359991523,1746466272022,-468.83,0.0003452,8]
[359991524,1746466272032,-400.0,0.0003452,8]
[359991525,1746466272041,-400.0,0.0003452,8]
[359991526,1746466272050,-650.06,0.0003452,8]
[359991527,1746466272060,-164.69418298,0.0003452,8]
[359991528,1746466272069,-400.0,0.0003452,8]
[359991529,1746466272079,-400.0,0.0003452,8]
[359991530,1746466272088,-400.0,0.0003452,8]
[359991531,1746466272099,-424.49,0.0003452,8]
[359991532,1746466272108,-400.0,0.0003452,8]
[359991533,1746466272117,-400.0,0.0003452,8]
[359991534,1746466272127,-400.0,0.0003452,8]
[359991535,1746466272136,-584.19,0.0003452,8]
[359991536,1746466272145,-544.01,0.0003452,8]
[359991537,1746466272155,-445.11,0.0003452,8]
[359991538,1746466272164,-400.0,0.0003452,8]
[359991539,1746466272174,-400.0,0.0003452,8]
[359991540,1746466272184,-400.0,0.0003452,8]
[359991541,1746466272193,-596.14,0.0003452,8]
[359991542,1746466272203,-407.26,0.0003452,8]
[359991543,1746466272213,-301.75084398,0.0003452,8]
[359991544,1746466272223,-400.0,0.0003452,8]
[359991545,1746466272233,-419.45554468,0.0003452,8]
[359991546,1746466272242,-723.92,0.0003452,8]
[359991547,1746466272252,-400.0,0.0003452,8]
[359991548,1746466272261,-601.89,0.0003452,8]
[359991549,1746466272275,-400.0,0.0003452,8]
[359991550,1746466272286,-516.84,0.0003452,8]
[359991551,1746466272296,-744.57,0.0003452,8]
[359991552,1746466272305,-856.46,0.0003452,8]
[359991553,1746466272315,-763.86,0.0003452,8]
[359991554,1746466272324,-500.0,0.0003452,8]
[359991555,1746466272334,-400.0,0.0003452,8]
[359991556,1746466272343,-400.0,0.0003452,8]
[359991557,1746466272354,-508.21,0.0003452,8]
[359991558,1746466272364,-400.0,0.0003452,8]
[359991559,1746466272373,-502.77,0.0003452,8]
[359991560,1746466272383,-2573.19,0.0003452,8]
[359991561,1746466272392,-470.42855279,0.0003452,8]
[359991562,1746466272401,-412.76,0.0003452,8]
[359991563,1746466272410,-400.0,0.0003452,8]
[359991564,1746466272420,-1858.43,0.0003452,8]
[359991565,1746466272429,-663.7,0.0003452,8]
[359991566,1746466272439,-752.3,0.0003452,8]
[359991567,1746466272448,-400.0,0.0003452,8]
[359991568,1746466272457,-3742.18,0.0003452,8]
[359991569,1746466272467,-400.0,0.0003452,8]
[359991570,1746466272476,-742.46,0.0003452,8]
[359991571,1746466272485,-791.14,0.0003452,8]
[359991572,1746466272494,-500.0,0.0003452,8]
[359991573,1746466272503,-400.0,0.0003452,8]
[359991574,1746466272512,-400.0,0.0003452,8]
[359991575,1746466272522,-400.0,0.0003452,8]
[359991576,1746466272531,-400.0,0.0003452,8]
[359991577,1746466272541,-424.25,0.0003452,8]
[359991578,1746466272550,-400.0,0.0003452,8]
[359991579,1746466272560,-400.0,0.0003452,8]
[359991580,1746466272569,-481.88119386,0.0003452,8]
[359991581,1746466272579,-400.0,0.0003452,8]
[359991582,1746466272588,-971.48,0.0003452,8]
[359991583,1746466272597,-400.0,0.0003452,8]
[359991584,1746466272607,-410.74,0.0003452,8]
[359991585,1746466272616,-400.0,0.0003452,8]
[359991586,1746466272626,-502.97,0.0003452,8]
[359991587,1746466272636,-1385.97,0.0003452,8]
[359991588,1746466272645,-828.56,0.0003452,8]
[359991589,1746466272655,-1013.68,0.0003452,8]
[359991590,1746466272664,-904.75,0.0003452,8]
[359991591,1746466272674,-400.0,0.0003452,8]
[359991592,1746466272684,-1542.95,0.0003452,8]
[359991593,1746466272694,-544.83,0.0003452,8]
[359991594,1746466272704,-906.63,0.0003452,8]
[359991595,1746466272714,-400.0,0.0003452,8]
[359991596,1746466272724,-899.92,0.0003452,8]
[359991597,1746466272734,-400.0,0.0003452,8]
[359991598,1746466272744,-400.0,0.0003452,8]
[359991599,1746466272754,-400.0,0.0003452,8]
[359991600,1746466272764,-400.0,0.0003452,8]
[359991601,1746466272779,-1685.97,0.0003452,8]
[359991602,1746466272788,-400.0,0.0003452,8]
[359991603,1746466272798,-400.0,0.0003452,8]
[359991604,1746466272807,-400.0,0.0003452,8]
[359991605,1746466272817,-411.02,0.0003452,8]
[359991606,1746466272827,-356.80548335,0.0003452,8]
[359991607,1746466272837,-2098.43,0.0003452,8]
[359991608,1746466272846,-544.02,0.0003452,8]
[359991609,1746466272856,-942.66,0.0003452,8]
[359991610,1746466272865,-400.0,0.0003452,8]
[359991611,1746466272875,-400.0,0.0003452,8]
[359991612,1746466272884,-1085.21,0.0003452,8]
[359991613,1746466272894,-400.0,0.0003452,8]
[359991614,1746466272904,-400.0,0.0003452,8]
[359991615,1746466272913,-400.0,0.0003452,8]
[359991616,1746466272923,-400.0,0.0003452,8]
[359991617,1746466272932,-413.54,0.0003452,8]
[359991618,1746466272942,-400.0,0.0003452,8]
[359991619,1746466272952,-441.99,0.0003452,8]
[359991620,1746466272962,-400.0,0.0003452,8]
[359991621,1746466272971,-334.86117381,0.0003452,8]
[359991622,1746466272981,-3512.58,0.0003452,2]
[359991623,1746466272991,-545.82,0.0003452,8]
[359991624,1746466273000,-400.0,0.0003452,8]
[359991625,1746466273009,-180.8335701,0.0003452,8]
[359991626,1746466273022,-748.45,0.0003452,8]
[359991627,1746466273032,-1080.9,0.0003452,8]
[359991628,1746466273042,-617.8,0.0003452,8]
[359991629,1746466273052,-400.0,0.0003452,8]
[359991630,1746466273061,-521.08,0.0003452,8]
[359991631,1746466273072,-342.20262717,0.0003452,8]
[359991632,1746466273081,-400.0,0.0003452,8]
[359991633,1746466273091,-580.82,0.0003452,8]
[359991634,1746466273100,-1700.23,0.0003452,8]
[359991635,1746466273109,-400.0,0.0003452,8]
[359991636,1746466273119,-400.0,0.0003452,8]
[359991637,1746466273128,-421.77,0.0003452,8]
[359991638,1746466273138,-224.62325569,0.0003452,8]
[359991639,1746466273148,-1322.26,0.0003452,8]
[359991640,1746466273157,-400.0,0.0003452,8]
[359991641,1746466273167,-400.0,0.0003452,8]
[359991642,1746466273177,-2273.92,0.0003452,8]
[359991643,1746466273187,-400.0,0.0003452,8]
[359991644,1746466273196,-942.85,0.0003452,8]
[359991645,1746466273206,-1099.01,0.0003452,8]
[359991646,1746466273216,-2641.87,0.0003452,8]
[359991647,1746466273227,-400.0,0.0003452,8]
[359991648,1746466273237,-504.9,0.0003452,8]
[359991649,1746466273247,-2078.31,0.0003452,8]
[359991650,1746466273256,-1796.69,0.0003452,8]
[359991651,1746466273266,-400.0,0.0003452,8]
[359991652,1746466273281,-404.27,0.0003452,8]
[359991653,1746466273291,-400.0,0.0003452,8]
[359991654,1746466273300,-997.13,0.0003452,8]
[359991655,1746466273310,-2875.2,0.0003452,8]
[359991656,1746466273321,-933.37,0.0003452,8]
[359991657,1746466273332,-400.0,0.0003452,8]
[359991658,1746466273341,-409.03288481,0.0003452,8]
[359991659,1746466273353,-400.0,0.0003452,8]
[359991660,1746466273362,-400.0,0.0003452,8]
[359991661,1746466273372,-2166.02,0.0003452,8]
[359991662,1746466273381,-495.11,0.0003452,8]
[359991663,1746466273391,-478.21,0.0003452,8]
[359991664,1746466273400,-828.45,0.0003452,8]
[359991665,1746466273410,-400.0,0.0003452,8]
[359991666,1746466273419,-2370.89,0.0003452,8]
[359991667,1746466273429,-833.54,0.0003452,8]
[359991668,1746466273438,-400.0,0.0003452,8]
[359991669,1746466273448,-11132.27,0.0003452,8]
[359991670,1746466273458,-414.2,0.0003452,8]
[359991671,1746466273467,-1942.95,0.0003452,8]
[359991672,1746466273476,-507.71144657,0.0003452,8]
[359991673,1746466273486,-617.39,0.0003452,8]
[359991674,1746466273496,-400.0,0.0003452,8]
[359991675,1746466273505,-534.63,0.0003452,8]
[359991676,1746466273515,-400.0,0.0003452,8]
[359991677,1746466273527,-400.0,0.0003452,8]
[359991678,1746466273536,-400.0,0.0003452,8]
[359991679,1746466273545,-400.0,0.0003452,8]
[359991680,1746466273555,-832.63,0.0003452,8]
[359991681,1746466273564,-400.0,0.0003452,8]
[359991682,1746466273574,-937.4,0.0003452,8]
[359991683,1746466273583,-400.0,0.0003452,8]
[359991684,1746466273592,-400.0,0.0003452,8]
[359991685,1746466273601,-9074.6,0.0003452,8]
[359991686,1746466273611,-1547.41,0.0003452,8]
[359991687,1746466273621,-1484.01,0.0003452,8]
[359991688,1746466273630,-541.8,0.0003452,8]
[359991689,1746466273640,-400.0,0.0003452,8]
[359991690,1746466273649,-2080.35,0.0003452,8]
[359991691,1746466273659,-2232.97,0.0003452,8]
[359991692,1746466273668,-1691.97,0.0003452,8]
[359991693,1746466273677,-400.0,0.0003452,8]
[359991694,1746466273686,-400.0,0.0003452,8]
[359991695,1746466273695,-400.0,0.0003452,8]
[359991696,1746466273705,-400.0,0.0003452,8]
[359991697,1746466273714,-3521.81,0.0003452,8]
[359991698,1746466273723,-708.96,0.0003452,8]
[359991699,1746466273733,-551.13,0.0003452,8]
[359991700,1746466273742,-400.0,0.0003452,8]
[359991701,1746466273751,-553.1,0.0003452,8]
[359991702,1746466273760,-586.27,0.0003452,8]
[359991703,1746466273770,-400.0,0.0003452,8]
[359991704,1746466273779,-400.0,0.0003452,8]
[359991705,1746466273789,-1186.53,0.0003452,8]
[359991706,1746466273798,-535.86,0.0003452,8]
[359991707,1746466273808,-400.0,0.0003452,8]
[359991708,1746466273817,-1986.73,0.0003452,8]
[359991709,1746466273827,-462.97,0.0003452,8]
[359991710,1746466273836,-406.42,0.0003452,8]
[359991711,1746466273846,-400.0,0.0003452,8]
[359991712,1746466273855,-400.0,0.0003452,8]
[359991713,1746466273865,-1488.07,0.0003452,8]
[359991714,1746466273875,-607.06,0.0003452,8]
[359991715,1746466273884,-4132.62,0.0003452,8]
[359991716,1746466273894,-1507.7,0.0003452,8]
[359991717,1746466273903,-1135.42,0.0003452,8]
[359991718,1746466273912,-681.33,0.0003452,8]
[359991719,1746466273922,-400.0,0.0003452,8]
[359991720,1746466273931,-1080.08,0.0003452,8]
[359991721,1746466273940,-400.0,0.0003452,8]
[359991722,1746466273949,-735.3,0.0003452,8]
[359991723,1746466273959,-400.0,0.0003452,8]
[359991724,1746466273967,-681.17,0.0003452,8]
[359991725,1746466273977,-400.0,0.0003452,8]
[359991726,1746466273986,-4785.9,0.0003452,8]
[359991727,1746466273995,-400.0,0.0003452,8]
[359991728,1746466274005,-400.0,0.0003452,8]
[359991729,1746466274014,-400.0,0.0003452,8]
[359991730,1746466274023,-578.15,0.0003452,8]
[359991731,1746466274032,-211.59928299,0.0003452,8]
[359991732,1746466274041,-25922.47,0.0003452,8]
[359991733,1746466274050,-400.0,0.0003452,8]
[359991734,1746466274060,-3661.81,0.0003452,8]
[359991735,1746466274069,-400.0,0.0003452,8]
[359991736,1746466274078,-400.0,0.0003452,8]
[359991737,1746466274087,-2781.29,0.0003452,8]
[359991738,1746466274096,-1064.62,0.0003452,8]
[359991739,1746466274106,-400.0,0.0003452,8]
[359991740,1746466274116,-400.0,0.0003452,8]
[359991741,1746466274126,-400.0,0.0003452,8]
[359991742,1746466274136,-611.37,0.0003452,8]
[359991743,1746466274146,-400.0,0.0003452,8]
[359991744,1746466274157,-400.0,0.0003452,8]
[359991745,1746466274167,-3135.4,0.0003452,8]
[359991746,1746466274177,-1911.03,0.0003452,8]
[359991747,1746466274186,-3885.96,0.0003452,8]
[359991748,1746466274197,-7691.86,0.0003452,8]
[359991749,1746466274207,-400.0,0.0003452,8]
[359991750,1746466274216,-4527.66,0.0003452,8]
[359991751,1746466274226,-400.0,0.0003452,8]
[359991752,1746466274235,-7054.49,0.0003452,8]
[359991753,1746466274244,-516.96,0.0003452,8]
[359991754,1746466274253,-604.47,0.0003452,8]
[359991755,1746466274263,-553.59,0.0003452,8]
[359991756,1746466274275,-400.0,0.0003452,8]
[359991757,1746466274286,-1553.26,0.0003452,8]
[359991758,1746466274295,-400.0,0.0003452,8]
[359991759,1746466274305,-1471.97,0.0003452,8]
[359991760,1746466274315,-400.0,0.0003452,8]
[359991761,1746466274325,-784.14,0.0003452,8]
[359991762,1746466274334,-2405.99,0.0003452,8]
[359991763,1746466274343,-566.19,0.0003452,8]
[359991764,1746466274354,-1800.71,0.0003452,8]
[359991765,1746466274363,-659.71,0.0003452,8]
[359991766,1746466274373,-400.0,0.0003452,8]
[359991767,1746466274382,-3076.91,0.0003452,8]
[359991768,1746466274392,-755.88,0.0003452,8]